Cogmind - Beta 9.6 @@@ ROGUE MODE // 2020.08.02 @ 10:00:33 Player: Alexbot Result: Destroyed by S-10 Pest with Light Assault Rifle Performance ------------- Evolutions (1) 500 Regions Visited (6) 1200 Robots Destroyed (45) 225 Value Destroyed (674) 674 Prototype IDs (27) 540 Alien Tech Used (0) 0 Bonus (-58) -58 TOTAL SCORE: 3081 Bonus ------- Follower Combat Kills 83 Aligned with FarCom 300 Friendly Fire -441 Cogmind --------- Core Integrity 0/400 Matter 218/300 Energy 306/310 System Corruption 0% Temperature Cool (0) Movement Walking (150) Ox1 Location -8/Mines Parts ------- > --- POWER (1) -------- Reinforced Fission Core > --- PROPULSION (2) --- Advanced Myomer Leg Advanced Myomer Leg > --- UTILITY (3) ------ Large Storage Unit Large Storage Unit Experimental Targeting Computer > --- WEAPON (3) ------- 8R-AWN's Boregun Longsword +1 > --- INVENTORY (16) --- Micro Nuclear Core Large Storage Unit Gravity Neutralizing Apparatus Advanced Core Analyzer Advanced Weapon Cycler Advanced Transmission Jammer Makeshift Hacking Suite Skeleton Box System Purifier Improved Trap Extractor AS-neutralizer No. 17b Firepult Datajack Plasma Flamer Deploy-a-Sentry Peak State ------------ > --- POWER ------------ Reinforced Fission Core > --- PROPULSION ------- Advanced Myomer Leg Advanced Myomer Leg > --- UTILITY ---------- Large Storage Unit Large Storage Unit Experimental Targeting Computer > --- WEAPON ----------- Beamcaster 8R-AWN's Boregun Longsword +1 > --- INVENTORY -------- Micro Nuclear Core Wheel Large Storage Unit Large Battery Advanced Weight Redist. System Gravity Neutralizing Apparatus Advanced Weapon Cycler Skeleton Box Improved Trap Extractor AS-neutralizer No. 17b Firepult Light Assault Rifle Datajack Plasma Flamer [Rating: 59] Favorites ----------- Power Light Ion Engine Engine Light Ion Engine Power Core Reinforced Fission Core Propulsion Light Treads Treads Light Treads Leg Advanced Myomer Leg Wheel Wheel Utility Large Storage Unit Device Gravity Neutralizing Apparatus Storage Large Storage Unit Processor Experimental Targeting Computer Protection Layered Light Armor Plating Weapon Light Assault Rifle Energy Gun Beamcaster Energy Cannon Heavy Ion Cannon Ballistic Gun Light Assault Rifle Launcher Rocket Launcher Special Weapon Plasma Cutter Slashing Weapon Longsword +1 Build | -11 -10 -10 -9 -9 -9 -8 ------- Run | Scr Mat Min Mat Min Exi Min Slots Evolved 2 | . . . 2 . . . Power . | . . . . . . . Propulsion . | . . . . . . . Utility 1 | . . . 1 . . . Weapon 1 | . . . 1 . . . Parts Attached 37 | . 8 . 3 7 19 . Power 3 | . . . . 1 2 . Engine 1 | . . . . 1 . . Core 2 | . . . . . 2 . Reactor . | . . . . . . . Propulsion 9 | . 2 . . 3 4 . Treads 3 | . 2 . . 1 . . Leg 4 | . . . . 2 2 . Wheel 2 | . . . . . 2 . Hover . | . . . . . . . Flight . | . . . . . . . Utility 7 | . . . 3 . 4 . Device 2 | . . . . . 2 . Storage 3 | . . . 3 . . . Processor 1 | . . . . . 1 . Hackware . | . . . . . . . Protection 1 | . . . . . 1 . Artifact . | . . . . . . . Weapon 18 | . 6 . . 3 9 . Energy Gun 6 | . 2 . . 1 3 . Energy Cannon 1 | . . . . . 1 . Ballistic Gun 8 | . 4 . . 2 2 . Ballistic Cannon . | . . . . . . . Launcher 1 | . . . . . 1 . Special Weapon 1 | . . . . . 1 . Impact Weapon . | . . . . . . . Slashing Weapon 1 | . . . . . 1 . Piercing Weapon . | . . . . . . . Special Melee Weapon . | . . . . . . . Unidentified Prototypes 5 | . . . . . 5 . Parts Lost 21 | . 6 . . 5 10 . Power 2 | . 1 . . . 1 . Propulsion 6 | . 1 . . 3 2 . Utility 1 | . . . . . 1 . Weapon 12 | . 4 . . 2 6 . Highest Loss Streak 9 | . 2 . . 2 9 . Average Slot Usage (%) 83 | . 66 71 73 86 93 88 Engine 3 | . 3 . . 4 4 . Core 2 | . . . . . 6 11 Treads 12 | . 15 28 22 15 4 . Leg 9 | . 12 . . 5 16 22 Storage 25 | . 14 14 29 33 25 22 Processor 2 | . . . . . 5 11 Energy Gun 4 | . 6 . . 5 5 . Ballistic Gun 18 | . 13 28 22 21 14 11 Slashing Weapon 2 | . . . . . 7 11 Naked Turns . | . . . . . . . Heaviest Build 67 | 10 10 6 50 58 67 62 Greatest Support 60 | 20 40 40 40 43 60 60 Greatest Overweight (x) 4 | . . . 1 2 4 1 Average Overweight (x) 1 | . . . . 1 1 1 Largest Inventory Capacity 22 | 6 6 6 22 22 22 16 Average Capacity 16 | 6 6 6 19 22 18 16 Most Carried 22 | 6 6 6 13 20 22 16 Average Carried 12 | 6 4 6 9 14 16 16 Final Capacity 22 | 6 6 6 22 22 16 16 Final Carried 20 | 6 6 6 13 20 16 16 Class Distribution -------------------- 31% | Mutant 28% | Hauler-Gunner 25% | Hauler-Mutant 14% | Scavenger-Mutant Dominant Class ---------------- Mutant | -10/Materials Mutant | -10/Mines Hauler-Mutant | -9/Materials Hauler-Mutant | -9/Mines Scavenger-Mutant | -9/Exiles Scavenger-Mutant | -8/Mines Resources | -11 -10 -10 -9 -9 -9 -8 ----------- Run | Scr Mat Min Mat Min Exi Min Matter Collected 924 | 200 130 28 38 121 407 . Remotely . | . . . . . . . Salvage Created 1215 | . 348 35 74 283 475 . Parts 116 | . 13 6 2 24 71 . Haulers Intercepted . | . . . . . . . Recyclers Shooed . | . . . . . . . Parts Field Recycled . | . . . . . . . Retrieved Matter . | . . . . . . . Parts Self-Destructed . | . . . . . . . Prevented . | . . . . . . . Kills | -11 -10 -10 -9 -9 -9 -8 ------- Run | Scr Mat Min Mat Min Exi Min Combat Hostiles Destroyed 33 | . 8 2 2 13 8 . Melee 1 | . . . . . 1 . Guns 25 | . 8 2 2 13 . . AOE 7 | . . . . . 7 . Classes Destroyed 6 | . 1 1 1 . 3 . Turret 1 | . . . . . 1 . Swarmer 13 | . . 2 . 11 . . Grunt 10 | . 8 . 1 1 . . Duelist 2 | . . . 1 1 . . Zionite 8 | . . . . . 8 . Assembled 7 | . . . . . 7 . Best Kill Streak 7 | . 3 2 2 4 7 . Combat Bots Only 7 | . 3 2 2 4 7 . Max Kills in Single Turn 2 | . 1 1 1 1 2 . Gunslinging . | . . . . . . . Exploded 2 | . . . . . 2 . Melee 1 | . . . . . 1 . Uniques/NPCs Destroyed 2 | . . . . . 2 . 8R-AWN (-9/Exiles) EX-BIN (-9/Exiles) EX-DEC (-9/Exiles) EX-HEX (-9/Exiles) Combat | -11 -10 -10 -9 -9 -9 -8 -------- Run | Scr Mat Min Mat Min Exi Min Damage Taken 3083 | . 954 34 112 523 1378 82 Core 625 | . 210 14 . 81 286 34 Absorbed by Shields . | . . . . . . . Core Remaining (%) 55 | 100 . 10 . . . . Volleys Fired 158 | . 50 4 11 35 54 4 Largest 3 | . 2 2 2 3 1 1 Hottest 115 | . 70 40 40 115 33 30 Shots Fired 248 | . 84 8 22 76 54 4 Gun 239 | . 84 8 22 76 45 4 Cannon . | . . . . . . . Launcher 5 | . . . . . 5 . Special 4 | . . . . . 4 . Kinetic 188 | . 48 8 22 61 45 4 Thermal 55 | . 36 . . 15 4 . Explosive 5 | . . . . . 5 . Electromagnetic . | . . . . . . . Robot Hit Streak 13 | . 12 2 7 13 8 1 Robot Miss Streak 6 | . 1 3 1 6 3 1 Penetration Max . | . . . . . . . Secondary Targets 7 | . 1 . 1 5 . . Max Gunslinging Chain 1 | . 1 . 1 1 . . Shots Hit Robots 202 | . 70 4 17 48 61 2 Core Hits 86 | . 18 4 6 22 36 . Critical Hits 24 | . 2 . . . 22 . Critical Kills 6 | . 1 . . . 5 . Critical Parts Destroyed 12 | . 1 . . . 11 . Melee Attacks 27 | . . . . . 27 . Impact . | . . . . . . . Slashing 27 | . . . . . 27 . Piercing . | . . . . . . . Sneak Attacks 1 | . . . . . 1 . Combat Hostiles . | . . . . . . . Follow-up Attacks . | . . . . . . . Damage Inflicted 3843 | . 734 36 132 527 2379 35 Guns 2086 | . 730 36 132 527 626 35 Cannons . | . . . . . . . Explosions 409 | . . . . . 409 . Melee 1311 | . . . . . 1311 . Ramming 4 | . 4 . . . . . Kinetic 1489 | . 366 36 132 294 626 35 Thermal 630 | . 364 . . 233 33 . Explosive 409 | . . . . . 409 . Electromagnetic . | . . . . . . . Impact . | . . . . . . . Slashing 1311 | . . . . . 1311 . Piercing . | . . . . . . . Highest Corruption . | . . . . . . . Average Corruption . | . . . . . . . Corruption Purged . | . . . . . . . Overload Shots . | . . . . . . . Overflow Damage 48 | . . . . . 48 . Projectiles . | . . . . . . . Explosions 48 | . . . . . 48 . Melee . | . . . . . . . Knockbacks . | . . . . . . . Impact . | . . . . . . . Kinetic . | . . . . . . . Secondary . | . . . . . . . Self-Inflicted Damage 8 | . . . . . 8 . Shots 1 | . . . . . 1 . Rammed 1 | . 1 . . . . . Targets Rammed 1 | . 1 . . . . . Kicked . | . . . . . . . Crushed . | . . . . . . . Highest Temperature 271 | . 93 . 1 271 3 . Average Temperature 61 | . 42 . 1 102 2 . Received Heat Transfer 653 | . 552 . 39 42 20 . Siege Activations . | . . . . . . . Robots Corrupted . | . . . . . . . Combat Hostiles . | . . . . . . . Parts Fried . | . . . . . . . Impact Corruptions . | . . . . . . . Robots Melted . | . . . . . . . Combat Hostiles . | . . . . . . . Parts Melted 1 | . 1 . . . . . Heat Transferred 1436 | . 1002 . . 407 27 . Parts Sabotaged . | . . . . . . . Parts Stolen . | . . . . . . . Parts Stripped . | . . . . . . . Power Chain Reactions . | . . . . . . . Missiles Intercepted . | . . . . . . . Alert | -11 -10 -10 -9 -9 -9 -8 ------- Run | Scr Mat Min Mat Min Exi Min Peak Influence 210 | . 162 49 160 210 . 3 Average Influence 85 | . 82 46 71 99 . 1 Maximum Alert Level 1 | . . . . 1 . . Low Security (%) 91 | 100 100 100 100 83 . 100 Level 1 8 | . . . . 16 . . Level 2 . | . . . . . . . Level 3 . | . . . . . . . Level 4 . | . . . . . . . Level 5 . | . . . . . . . High Security . | . . . . . . . Max Security . | . . . . . . . Squads Dispatched 6 | . 3 . 3 . . . Investigation 2 | . 2 . . . . . Extermination . | . . . . . . . Reinforcement 4 | . 1 . 3 . . . Assault . | . . . . . . . Garrison . | . . . . . . . Intercept . | . . . . . . . Construction Impeded . | . . . . . . . Haulers Reinforced . | . . . . . . . Stealth | -11 -10 -10 -9 -9 -9 -8 --------- Run | Scr Mat Min Mat Min Exi Min Distress Signals 1 | . . . 1 . . . Communications Jammed . | . . . . . . . Distress Signals . | . . . . . . . Times Spotted 66 | . 12 3 11 13 24 3 Peak Tracking Total 9 | . 7 3 6 4 9 4 Tactical Retreats 6 | . . . . . 6 . Traps | -11 -10 -10 -9 -9 -9 -8 ------- Run | Scr Mat Min Mat Min Exi Min Traps Triggered 1 | . 1 . . . . . Indirectly . | . . . . . . . Trap Hack Attempts . | . . . . . . . Triggered . | . . . . . . . Disarmed . | . . . . . . . Reprogrammed . | . . . . . . . Reused . | . . . . . . . Traps Extracted . | . . . . . . . Installed . | . . . . . . . Triggered . | . . . . . . . Machines | -11 -10 -10 -9 -9 -9 -8 ---------- Run | Scr Mat Min Mat Min Exi Min Machines Disabled 9 | . . . 1 . 8 . Max in Single Turn 2 | . . . . . 2 . Machines Sabotaged . | . . . . . . . Garrisons Compromised . | . . . . . . . Overloaded Fab Kills . | . . . . . . . Fab Network Shutdowns . | . . . . . . . Hacking | -11 -10 -10 -9 -9 -9 -8 --------- Run | Scr Mat Min Mat Min Exi Min Machines Accessed 5 | . 1 1 1 1 1 . Terminals 3 | . 1 1 1 . . . Fabricators . | . . . . . . . Repair Stations . | . . . . . . . Recycling Units . | . . . . . . . Scanalyzers . | . . . . . . . Garrison Access . | . . . . . . . Total Hacks 8 | . 3 2 1 1 1 . Successful 5 | . 1 1 1 1 1 . Failed 3 | . 2 1 . . . . Catastrophic 1 | . . 1 . . . . Database Lockouts . | . . . . . . . Manual 5 | . 1 2 1 . 1 . Terminals 6 | . 3 2 1 . . . Fabricators . | . . . . . . . Repair Stations . | . . . . . . . Recycling Units . | . . . . . . . Scanalyzers . | . . . . . . . Garrison Access . | . . . . . . . Terminal Hacks 5 | . 1 1 1 1 1 . Open Door 1 | . . . . 1 . . Level Access Points 1 | . . 1 . . . . Branch Access Points 2 | . 1 . 1 . . . EX-Prototype ID Bank 1 | . . . . . 1 . Fabricator Hacks . | . . . . . . . Repair Station Hacks . | . . . . . . . Recycling Unit Hacks . | . . . . . . . Scanalyzer . | . . . . . . . Garrison Access Hacks . | . . . . . . . Unauthorized Hacks . | . . . . . . . Terminals . | . . . . . . . Fabricators . | . . . . . . . Repair Stations . | . . . . . . . Recycling Units . | . . . . . . . Scanalyzers . | . . . . . . . Garrison Access . | . . . . . . . Data Cores Recovered . | . . . . . . . Used . | . . . . . . . Hacking Detections 1 | . 1 . . . . . Full Trace Events 1 | . 1 . . . . . Feedback Events . | . . . . . . . Feedback Blocked . | . . . . . . . Robot Schematics Acquired . | . . . . . . . Robots Built . | . . . . . . . Matter . | . . . . . . . Time . | . . . . . . . Total Robot Build Rating . | . . . . . . . Part Schematics Acquired . | . . . . . . . Parts Built . | . . . . . . . Matter . | . . . . . . . Time . | . . . . . . . Total Part Build Rating . | . . . . . . . Parts Repaired . | . . . . . . . Time . | . . . . . . . Parts Recycled . | . . . . . . . Recycled Matter . | . . . . . . . Retrieved Matter . | . . . . . . . Retrieved Components . | . . . . . . . Parts Scanalyzed . | . . . . . . . Part Schematics Acquired . | . . . . . . . Parts Damaged . | . . . . . . . Bothacking | -11 -10 -10 -9 -9 -9 -8 ------------ Run | Scr Mat Min Mat Min Exi Min Used RIF Installer . | . . . . . . . Robots Hacked . | . . . . . . . Non-combat . | . . . . . . . Combat . | . . . . . . . Robot Hacks Applied . | . . . . . . . Relay Couplers Released . | . . . . . . . Robots Rewired . | . . . . . . . Allies Hacked . | . . . . . . . Hacks Repelled . | . . . . . . . Allies | -11 -10 -10 -9 -9 -9 -8 -------- Run | Scr Mat Min Mat Min Exi Min Total Allies 2 | . . 2 . . . . Largest Group 2 | . . 2 2 1 . . Highest-Rated Group 43 | . . 43 43 31 . . Highest-Rated Ally 31 | . . 31 31 31 . . Total Orders . | . . . . . . . Ally Attacks 20 | . . . 13 7 . . Total Damage 352 | . . . 230 122 . . Kills 4 | . . . 4 . . . Allies Corrupted . | . . . . . . . Allies Melted . | . . . . . . . Intel | -11 -10 -10 -9 -9 -9 -8 ------- Run | Scr Mat Min Mat Min Exi Min Robot Analysis Total . | . . . . . . . Derelict Logs Recovered 1 | . . 1 . . . . Drone Launches . | . . . . . . . Drone Recoveries . | . . . . . . . Exploration | -11 -10 -10 -9 -9 -9 -8 ------------- Run | Scr Mat Min Mat Min Exi Min Turns Passed 3096 | 3 451 228 256 1024 1126 8 Spaces Moved 1288 | 3 199 130 122 315 518 1 Core . | . . . . . . . Treads 881 | . 108 130 122 315 206 . Legs 398 | 3 91 . . . 303 1 Wheels 9 | . . . . . 9 . Hover . | . . . . . . . Flight . | . . . . . . . Fastest Speed 120 | 120 120 160 160 180 120 150 Average Speed 173 | 120 141 160 175 194 175 150 Slowest Speed 200 | 120 160 160 180 200 200 150 Overloaded Moves . | . . . . . . . Propulsion Burnouts . | . . . . . . . Robots Hopped . | . . . . . . . Cave-ins Triggered . | . . . . . . . Exploration Rate (%) 35 | 3 37 38 17 66 85 3 Regions Visited 6 Branch Regions 4 Pre-discovered Areas 1 | . . 1 . . . . Known Exits Taken 3 | . 1 1 1 . . . Unknown Exits Taken 3 | 1 . . . 1 1 . Scrap Searched 1 | . . . . 1 . . Spaces Dug 10 | . . . . . 10 . Terrain Destroyed 45 | . . . . . 42 3 Melee . | . . . . . . . Projectile 6 | . . . . . 3 3 AOE 39 | . . . . . 39 . Actions | -11 -10 -10 -9 -9 -9 -8 --------- Run | Scr Mat Min Mat Min Exi Min Total 1908 | 2 290 144 145 665 657 5 Wait 340 | . 24 11 4 297 4 . Move 1282 | 2 198 129 121 314 517 1 Hop . | . . . . . . . Pick Up 40 | . 5 . 6 11 18 . Fast Attach 8 | . 2 . 2 3 1 . Attach 19 | . 4 . . 4 11 . Detach 4 | . 1 . . . 3 . Swap 10 | . 2 . 1 . 7 . Drop 18 | . 3 . . . 15 . Fire 158 | . 50 4 11 35 54 4 Melee 27 | . . . . . 27 . Ram . | . . . . . . . Kick . | . . . . . . . Crush 1 | . 1 . . . . . Escape Stasis . | . . . . . . . Rewire 1 | . . . . 1 . . Trap . | . . . . . . . Miscellaneous . | . . . . . . . Route ------- -11/Scrapyard -10/Materials -10/Mines (discovered 2 exits: *Mat x2) -9/Materials -9/Mines (discovered 3 exits: [*Mat x2] / *Exi) -9/Exiles -8/Mines History --------- Turn | Location | Event 1 | -11/Scrapyard | Discovered new exit (range 2) 4 | -11/Scrapyard | Entered Materials 190 | -10/Materials | Core integrity fell below 50% 250 | -10/Materials | Core integrity fell below 20% 309 | -10/Materials | Build established: Mutant 398 | -10/Materials | Identified exit to Mines 455 | -10/Materials | Entered Mines 470 | -10/Mines | Met a Derelict bent on vengeance 482 | -10/Mines | Identified exit to Materials 535 | -10/Mines | Learned location of Zion (-6) 683 | -10/Mines | Entered Materials 683 | -9/Materials | Accompanied by 2 allies 683 | -9/Materials | Evolved 2 slots: Utility x1, Weapon x1 688 | -9/Materials | Led the pair of lost Derelicts to an unsafe place 704 | -9/Materials | Identified exit to Mines 939 | -9/Materials | Entered Mines 939 | -9/Mines | Accompanied by 1 ally 940 | -9/Mines | Assembled infested the area 1017 | -9/Mines | Build established: Hauler-Mutant 1259 | -9/Mines | A weapon hastily lodged in a ceiling crevice suddenly fell to the ground 1388 | -9/Mines | Discovered new exit (range 5) 1617 | -9/Mines | Met a Derelict who couldn't figure out how to use a Trap Extractor 1791 | -9/Mines | Build established: Hauler-Gunner 1922 | -9/Mines | Discovered new exit (range 5) 1931 | -9/Mines | Received a Rocket Launcher from a helpful Derelict 1955 | -9/Mines | Discovered new exit (range 5) 1963 | -9/Mines | Entered Exiles 2013 | -9/Exiles | Met 8R-AWN 2043 | -9/Exiles | Met EX-HEX 2107 | -9/Exiles | Met EX-BIN 2131 | -9/Exiles | Aligned with FarCom system 2133 | -9/Exiles | Given EX-Vault access code 2183 | -9/Exiles | Opened EX-Vault 2195 | -9/Exiles | Found Longsword +1 2205 | -9/Exiles | Found Firepult 2208 | -9/Exiles | Found Skeleton Box 2251 | -9/Exiles | Warned to stay clear of 0b10 Research branches 2387 | -9/Exiles | Attacked by the Exiles 2427 | -9/Exiles | Destroyed 7 combat bots 2464 | -9/Exiles | Core integrity fell below 50% 2468 | -9/Exiles | Destroyed 8R-AWN 2473 | -9/Exiles | Found Prototype Ballistic Gun 2473 | -9/Exiles | Identified 8R-AWN's Boregun 2480 | -9/Exiles | Found Prototype Processor 2484 | -9/Exiles | Found Prototype Device 2490 | -9/Exiles | Lost 9 parts (1p2n1u5w) 2496 | -9/Exiles | Identified AS-neutralizer No. 17b 2497 | -9/Exiles | Identified Exp. Targeting Computer 2665 | -9/Exiles | Core integrity fell below 20% 2825 | -9/Exiles | Destroyed EX-BIN 2850 | -9/Exiles | Destroyed EX-DEC 2854 | -9/Exiles | Found Prototype Device 2888 | -9/Exiles | Destroyed EX-HEX 2905 | -9/Exiles | Found Deploy-a-Sentry 2946 | -9/Exiles | Build established: Scavenger-Mutant 3071 | -9/Exiles | Discovered new exit (range 14) 3089 | -9/Exiles | Stole four prototypes: Longsword +1, Skeleton Box, Firepult, Deploy-a-Sentry 3089 | -9/Exiles | Entered Mines 3097 | -8/Mines | Destroyed by S-10 Pest with Light Assault Rifle Last Messages --------------- 02916_ Acquired 27 matter. 02925_ Dropped Wheel. 02926_ Acquired Adv. Transmission Jammer. 02928_ Acquired 30 matter. 02976_ Acquired 28 matter. 03032_ HV Slug penetrates W1-DM0. 03032_ W1-DM0 suffers critical hit. 03032_ Destroyed Mak. Leg. 03034_ HV Slug penetrates Machine. 03034_ Machine disabled. 03034_ HV Slug penetrates W1-DM0. 03034_ W1-DM0 suffers critical hit. 03034_ W1-DM0 destroyed. 03053_ Acquired 28 matter. 03071_ EXIT=FOUND A strange signal echoes through the mines. LOCATION=UNKNOWN GOAL=ESCAPE 03091_ HV Slug penetrates Wall. 03093_ HV Slug penetrates S-10 Pest. Map ----- +----------------------------------------------------+ | ??????????????????????????????? | | ??????????????????????????????? | | ??????????????????????????????? | | ??????????????????????????????? | | ??????????????????????????????? | | ??????????????????????????????? | | ??????????????????????????????? | | ??????????????????????????????? | | ??????????????????????????????? | | ??????????????????????????????? | | ??? ????????????????????????? | | ??# s????????????????????????? | | ??? s ????????????????????????? | | ??? ????????????????????????? | | ??? ????????????????????????? | | ??? s ????????????????????????? | | ???# ????????????????????????? | | ???#; ##??????????????????????? | | ???#; ##?????????????????????? | | ???# ###???????????????????? | | ???? ##??????????????????? | | ????# #??????????????????? | | ????# #??????????????????? | | ???## #???????????????????? | | ???# #????????????????????? | | ??# @ #????????????????????? | | ??# #????????????????????? | | ??## ##????????????????????? | | ???######?????????????????????? | | ??????????????????????????????? | | ??????????????????????????????? | | | | | | | | | | | | | | | | | | | | | | | | | | | | | | | | | | | | | | | +----------------------------------------------------+ Best States ------------- Heat Dissipation 28 Energy Generation 19 Energy Capacity 310 Matter Stores 300 Matter Capacity 300 Sight Range 16 Terrain Scan Density 10 Armor Coverage 150 Evasion (%) 40 Targeting Accuracy 12 Recoil Reduction 2 Item Schematics ----------------- None Robot Schematics ------------------ None Fabricated ------------ Nothing Alien Tech Used ----------------- None Achievements -------------- None Challenges ------------ None Game ------ Seed GhostGuidanceBattery Manual? 0 Play Time 00:18:04 Cumulative 843.0 hours Start 2020.08.02 @ 09:41:35 End 2020.08.02 @ 10:00:33 Sessions 1 Manual Loads 0 Difficulty Rogue Special Mode None Game No. 265 Rogue 265 Adventurer 0 Explorer 0 Win Type - Total 51 Types 39/1/3/3/3/1/1 Lore% 97 Gallery% 99 Achievement% 97 Wizard Run 0 Options --------- ASCII 0 Keyboard 1 Movement Numpad Keybinds 0 Fullscreen 1 Font 18/SmallcapsGlow Map View 76x50 Tactical HUD 1 Map Filters NONE Filters NONE Steam 1 RUN: b1e16b03-6160-41db-ba6b-076bb9b66a5e